fUST/lending_fUST_20241230
["ID","MTS","AMOUNT","RATE_DAILY","PERIOD"]
[347165269,1735537843544,-500.0,0.00015309,2]
[347165270,1735537843554,-500.0,0.00015309,2]
[347165271,1735537843563,-589.1250274,0.00015309,2]
[347165272,1735537843572,-612.07,0.00015309,2]
[347165273,1735537843581,-500.0,0.00015309,2]
[347165274,1735537843590,-355.05883114,0.00015309,2]
[347165275,1735537843600,-500.0,0.00015309,2]
[347165276,1735537843609,-528.54,0.00015309,2]
[347165277,1735537843618,-763.72,0.00015309,2]
[347165279,1735537843627,-1054.68352218,0.00015309,2]
[347165282,1735537843718,-331.57913561,0.00015309,2]
[347165283,1735537843733,-1573.84734221,0.00015309,2]
[347165284,1735537843743,-500.0,0.00015309,2]
[347165285,1735537843752,-157.92,0.0001531,2]
[347165286,1735537843761,-195.29,0.00015311,2]
[347165287,1735537843770,-500.0,0.00015582,2]
[347165288,1735537843779,-500.0,0.00015582,2]
[347165289,1735537843788,-2529.02,0.00015583,2]
[347165290,1735537843800,-500.0,0.00015583,2]
[347165291,1735537843810,-500.0,0.00015583,2]
[347165292,1735537843819,-511.00887205,0.00015583,2]
[347165293,1735537843828,-500.0,0.00015583,2]
[347165294,1735537843837,-612.07,0.00015583,2]
[347165295,1735537843846,-500.0,0.00015583,2]
[347165296,1735537843855,-500.0,0.00015583,2]
[347165297,1735537843864,-763.72,0.00015583,2]
[347165298,1735537843873,-2960.11,0.00015583,2]
[347165299,1735537843882,-583.01,0.00015583,2]
[347165300,1735537843891,-500.0,0.00015583,2]
[347165301,1735537843901,-500.0,0.00015856,2]
[347165302,1735537843911,-500.0,0.00015856,2]
[347165303,1735537843921,-789.45491866,0.00015857,2]
[347165304,1735537843932,-1739.56508134,0.00015857,2]
[347165305,1735537843941,-500.0,0.00015857,2]
[347165306,1735537843951,-500.0,0.00015857,2]
[347165307,1735537843960,-500.0,0.00015857,2]
[347165308,1735537843969,-612.07,0.00015857,2]
[347165309,1735537843979,-500.0,0.00015857,2]
[347165310,1735537843988,-500.0,0.00015857,2]
[347165311,1735537843997,-763.72,0.00015857,2]
[347165312,1735537844007,-2960.11,0.00015857,2]
[347165313,1735537844016,-500.0,0.00015857,2]
[347165314,1735537844025,-500.0,0.0001613,2]
[347165315,1735537844034,-500.0,0.0001613,2]
[347165316,1735537844043,-2529.02,0.00016131,2]
[347165317,1735537844052,-500.0,0.00016131,2]
[347165318,1735537844061,-500.0,0.00016131,2]
[347165319,1735537844070,-500.0,0.00016131,2]
[347165320,1735537844079,-612.07,0.00016131,2]
[347165321,1735537844088,-500.0,0.00016131,2]
[347165322,1735537844097,-500.0,0.00016131,2]
[347165323,1735537844106,-763.72,0.00016131,2]
[347165324,1735537844115,-2960.11,0.00016131,2]
[347165325,1735537844124,-583.01,0.00016131,2]
[347165326,1735537844133,-500.0,0.00016131,2]
[347165327,1735537844142,-500.0,0.00016404,2]
[347165328,1735537844150,-500.0,0.00016404,2]
[347165329,1735537844159,-2529.02,0.00016405,2]
[347165330,1735537844168,-500.0,0.00016405,2]
[347165331,1735537844177,-500.0,0.00016405,2]
[347165332,1735537844186,-301.66892488,0.00016405,2]
[347165353,1735538037102,250.0,0.00025,120]
[347165356,1735538520172,784.8,0.00025,120]
[347165399,1735539032763,-400.0,0.00013973,2]
[347165401,1735539032772,-180.21521658,0.00014834,2]
[347165403,1735539032781,-53.69186141,0.00014933,2]
[347165407,1735539032815,-1866.59092417,0.00014933,2]
[347165409,1735539032825,-260.48511427,0.00014933,2]
[347165411,1735539032834,-159.83665754,0.00014934,2]
[347165413,1735539032844,-300.0,0.00015032,2]
[347165415,1735539032853,-350.48,0.00015033,2]
[347165417,1735539032862,-500.0,0.00015033,2]
[347165419,1735539032871,-500.0,0.00015033,2]
[347165421,1735539032879,-383.39492198,0.00015033,2]
[347165423,1735539032890,-2.08739634,0.00015033,2]
[347165425,1735539032900,-500.0,0.00015033,2]
[347165426,1735539032909,-500.0,0.00015033,2]
[347165428,1735539032918,-500.9015902,0.00015033,2]
[347165430,1735539032927,-63.56041774,0.00015033,2]
[347165433,1735539032942,-436.43958226,0.00015033,2]
[347165435,1735539032952,-500.0,0.00015033,2]
[347165437,1735539032961,-500.0,0.00015033,2]
[347165438,1735539032971,-500.0,0.00015033,2]
[347165440,1735539032980,-500.0,0.00015033,2]
[347165442,1735539032989,-500.0,0.00015033,2]
[347165444,1735539032998,-500.0,0.00015033,2]
[347165446,1735539033007,-500.0,0.00015033,2]
[347165448,1735539033018,-644.47,0.00015033,2]
[347165450,1735539033027,-500.0,0.00015033,2]
[347165452,1735539033036,-500.0,0.00015033,2]
[347165454,1735539033046,-500.0,0.00015033,2]
[347165456,1735539033056,-500.0,0.00015033,2]
[347165458,1735539033066,-500.0,0.00015033,2]
[347165459,1735539033076,-500.0,0.00015033,2]
[347165461,1735539033085,-500.0,0.00015033,2]
[347165463,1735539033095,-505.71887033,0.00015033,2]
[347165465,1735539033105,-500.0,0.00015033,2]
[347165467,1735539033114,-500.0,0.00015033,2]
[347165469,1735539033124,-500.0,0.00015033,2]
[347165471,1735539033133,-500.0,0.00015033,2]
[347165473,1735539033143,-500.0,0.00015033,2]
[347165474,1735539033153,-515.14207719,0.00015033,2]
[347165475,1735539033163,-500.0,0.00015033,2]
[347165476,1735539033172,-500.0,0.00015033,2]
[347165477,1735539033182,-899.04,0.00015033,2]
[347165478,1735539033192,-3479.6,0.00015033,2]
[347165479,1735539033202,-500.0,0.00015033,2]
[347165480,1735539033212,-500.0,0.00015033,2]
[347165481,1735539033222,-500.0,0.00015034,2]
[347165482,1735539033232,-500.0,0.00015034,2]
[347165483,1735539033242,-500.0,0.00015034,2]
[347165484,1735539033252,-500.0,0.00015034,2]
[347165485,1735539033261,-500.0,0.00015034,2]
[347165486,1735539033271,-500.0,0.00015034,2]
[347165487,1735539033281,-510.75388692,0.00015034,2]
[347165488,1735539033291,-503.68,0.00015034,2]
[347165489,1735539033301,-500.0,0.00015034,2]
[347165490,1735539033313,-500.0,0.00015034,2]
[347165491,1735539033323,-500.0,0.00015034,2]
[347165492,1735539033333,-500.0,0.00015034,2]
[347165493,1735539033342,-500.0,0.00015034,2]
[347165494,1735539033352,-500.0,0.00015034,2]
[347165495,1735539033361,-500.0,0.00015034,2]
[347165496,1735539033373,-500.0,0.00015034,2]
[347165497,1735539033382,-2768.29,0.00015034,2]
[347165498,1735539033391,-500.0,0.00015034,2]
[347165499,1735539033401,-500.0,0.00015034,2]
[347165500,1735539033411,-172.42,0.00015034,2]
[347165501,1735539033420,-510.64356982,0.00015034,2]
[347165502,1735539033430,-500.0,0.00015034,2]
[347165503,1735539033439,-500.0,0.00015034,2]
[347165504,1735539033450,-500.0,0.00015034,2]
[347165505,1735539033460,-500.0,0.00015034,2]
[347165506,1735539033470,-500.0,0.00015034,2]
[347165507,1735539033480,-500.0,0.00015034,2]
[347165508,1735539033490,-241.76081052,0.00015034,2]
[347165509,1735539033500,-500.0,0.00015034,2]
[347165510,1735539033509,-899.74,0.00015034,2]
[347165511,1735539033521,-725.64,0.00015034,2]
[347165512,1735539033530,-500.0,0.00015035,2]
[347165513,1735539033540,-500.0,0.00015035,2]
[347165514,1735539033549,-500.0,0.00015035,2]
[347165515,1735539033559,-500.0,0.00015035,2]
[347165516,1735539033569,-500.0,0.00015035,2]
[347165517,1735539033579,-500.0,0.00015307,2]
[347165518,1735539033589,-573.93,0.00015307,2]
[347165519,1735539033599,-500.0,0.00015307,2]
[347165520,1735539033608,-500.0,0.00015307,2]
[347165521,1735539033618,-644.47,0.00015307,2]
[347165522,1735539033627,-500.0,0.00015307,2]
[347165523,1735539033637,-500.0,0.00015307,2]
[347165524,1735539033647,-428.95,0.00015307,2]
[347165525,1735539033656,-592.08,0.00015307,2]
[347165526,1735539033666,-500.0,0.00015307,2]
[347165527,1735539033676,-500.0,0.00015307,2]
[347165528,1735539033685,-500.0,0.00015307,2]
[347165529,1735539033695,-500.0,0.00015307,2]
[347165530,1735539033704,-500.0,0.00015307,2]
[347165531,1735539033714,-500.0,0.00015307,2]
[347165532,1735539033725,-500.0,0.00015307,2]
[347165533,1735539033734,-500.0,0.00015307,2]
[347165534,1735539033744,-500.0,0.00015307,2]
[347165535,1735539033753,-899.04,0.00015307,2]
[347165536,1735539033763,-3479.6,0.00015307,2]
[347165537,1735539033772,-500.0,0.00015307,2]
[347165538,1735539033782,-500.0,0.00015307,2]
[347165539,1735539033791,-500.0,0.00015308,2]
[347165540,1735539033801,-597.12397222,0.00015308,2]
[347165541,1735539033810,-2768.29,0.00015308,2]
[347165542,1735539033820,-500.0,0.00015308,2]
[347165543,1735539033829,-500.0,0.00015308,2]
[347165544,1735539033838,-500.0,0.00015308,2]
[347165545,1735539033847,-500.0,0.00015308,2]
[347165546,1735539033856,-500.0,0.00015308,2]
[347165547,1735539033866,-899.74,0.00015308,2]
[347165548,1735539033876,-725.64,0.00015308,2]
[347165549,1735539033885,-470.07751262,0.00015309,2]
[347165550,1735539033895,-206.24818433,0.0001558,2]
[347165551,1735539033905,-500.0,0.00015581,2]
[347165552,1735539033915,-500.0,0.00015581,2]
[347165553,1735539033925,-500.0,0.00015581,2]
[347165554,1735539033934,-644.47,0.00015581,2]
[347165555,1735539033944,-500.0,0.00015581,2]
[347165556,1735539033954,-500.0,0.00015581,2]
[347165557,1735539033963,-500.0,0.00015581,2]
[347165558,1735539033973,-500.0,0.00015581,2]
[347165559,1735539033983,-224.24,0.00015581,2]
[347165560,1735539033992,-500.0,0.00015581,2]
[347165561,1735539034001,-387.01,0.00015581,2]
[347165562,1735539034011,-500.0,0.00015581,2]
[347165563,1735539034020,-326.4,0.00015581,2]
[347165564,1735539034030,-602.62,0.00015581,2]
[347165565,1735539034039,-899.04,0.00015581,2]
[347165566,1735539034048,-3479.6,0.00015581,2]
[347165567,1735539034057,-500.0,0.00015581,2]
[347165568,1735539034067,-500.0,0.00015581,2]
[347165569,1735539034076,-500.0,0.00015582,2]
[347165570,1735539034086,-2768.29,0.00015582,2]
[347165571,1735539034095,-500.0,0.00015582,2]
[347165572,1735539034104,-500.0,0.00015582,2]
[347165573,1735539034114,-197.55,0.00015582,2]
[347165574,1735539034124,-329.49,0.00015582,2]
[347165575,1735539034134,-193.32895461,0.00015582,2]
[347165576,1735539034312,-706.41104539,0.00015582,2]
[347165577,1735539034322,-725.64,0.00015582,2]
[347165578,1735539034332,-163.69054894,0.00015855,2]
[347165579,1735539034342,-468.76399927,0.00015855,2]
[347165593,1735539038690,-500.0,0.00015032,2]
[347165594,1735539038700,-500.0,0.00015032,2]
[347165595,1735539038709,-500.0,0.00015032,2]
[347165596,1735539038718,-500.0,0.00015032,2]
[347165597,1735539038727,-373.34214768,0.00015032,2]
[347165598,1735539038736,-443.14878808,0.00015032,2]
[347165599,1735539038745,-31.23600073,0.00015855,2]
[347165600,1735539038755,-500.0,0.00015855,2]
[347165601,1735539038764,-644.47,0.00015855,2]
[347165602,1735539038773,-198.33107512,0.00015855,2]
[347165603,1735539038783,-500.0,0.00015855,2]
[347165604,1735539038792,-500.0,0.00015855,2]
[347165605,1735539038802,-500.0,0.00015855,2]
[347165606,1735539038811,-546.00269928,0.00015855,2]
[347165607,1735539038820,-500.0,0.00015855,2]
[347165608,1735539038829,-899.04,0.00015855,2]
[347165609,1735539038838,-3479.6,0.00015855,2]
[347165610,1735539038847,-500.0,0.00015855,2]
[347165611,1735539038857,-500.0,0.00015855,2]
[347165614,1735539038866,-2768.29,0.00015856,2]
[347165616,1735539038875,-500.0,0.00015856,2]
[347165618,1735539038884,-899.74,0.00015856,2]
[347165620,1735539038893,-725.64,0.00015856,2]
[347165622,1735539038902,-1480.73985488,0.0001607,2]
[347165624,1735539038914,-3956.84918237,0.0001607,2]
[347165625,1735539038925,-4623.62252232,0.0001607,2]
[347165626,1735539038934,-500.0,0.00016129,2]
[347165627,1735539038943,-500.0,0.00016129,2]
[347165628,1735539038953,-644.47,0.00016129,2]
[347165629,1735539038962,-500.0,0.00016129,2]
[347165630,1735539038972,-401.64,0.00016129,2]
[347165631,1735539038981,-500.0,0.00016129,2]
[347165633,1735539038990,-500.0,0.00016129,2]
[347165635,1735539038999,-3479.6,0.00016129,2]
[347165636,1735539039008,-500.0,0.00016129,2]
[347165637,1735539039017,-2768.29,0.0001613,2]
[347165638,1735539039027,-500.0,0.0001613,2]
[347165639,1735539039036,-899.74,0.0001613,2]
[347165640,1735539039046,-725.64,0.0001613,2]
[347165641,1735539039055,-159.8366575,0.00016384,2]
[347165642,1735539039064,-594.06075505,0.00016403,2]
[347165643,1735539039073,-500.0,0.00016403,2]
[347165644,1735539039082,-644.47,0.00016403,2]
[347165645,1735539039091,-500.0,0.00016403,2]
[347165646,1735539039100,-500.0,0.00016403,2]
[347165647,1735539039109,-899.04,0.00016403,2]
[347165648,1735539039119,-3479.6,0.00016403,2]
[347165649,1735539039129,-500.0,0.00016403,2]
[347165650,1735539039138,-500.0,0.00016403,2]
[347165651,1735539039147,-12956.02692723,0.00016404,2]
[347165652,1735539039156,-192801.23777675,0.00016404,2]
[347165653,1735539039165,-2768.29,0.00016404,2]
[347165654,1735539039174,-927.764141,0.00016404,2]
[347165655,1735539039184,-927.764141,0.00016404,2]
[347165656,1735539039193,-151.0,0.00016404,2]
[347165657,1735539039202,-151.0,0.00016404,2]
[347165658,1735539039211,-153.621411,0.00016404,2]
[347165659,1735539039220,-385.9192,0.00016404,2]
[347165660,1735539039230,-385.9192,0.00016404,2]
[347165661,1735539039239,-500.0,0.00016404,2]
[347165662,1735539039248,-899.74,0.00016404,2]
[347165663,1735539039258,-725.64,0.00016404,2]
[347165664,1735539039267,-251.01221582,0.00016405,2]
[347165665,1735539039276,-500.0,0.00016438,2]
[347165666,1735539039286,-500.0,0.00016438,2]
[347165667,1735539039296,-151.0,0.00016438,2]
[347165668,1735539039305,-438.885848,0.00016438,2]
[347165669,1735539039315,-438.885848,0.00016438,2]
[347165670,1735539039325,-1363.072733,0.00016438,2]
[347165671,1735539039334,-152.119931,0.00016438,2]
[347165672,1735539039345,-1363.072733,0.00016438,2]
[347165673,1735539039357,-1149.642885,0.00016438,2]
[347165674,1735539039367,-1149.642885,0.00016438,2]
[347165675,1735539039376,-170.563264,0.00016438,2]
[347165676,1735539039385,-170.563264,0.00016438,2]
[347165677,1735539039396,-153.5139799,0.00016438,2]
[347165678,1735539039406,-151.0,0.00016438,2]
[347165679,1735539039415,-420.0,0.00016451,2]
[347165680,1735539039426,-500.0,0.00016677,2]
[347165681,1735539039435,-644.47,0.00016677,2]
[347165682,1735539039444,-500.0,0.00016677,2]
[347165683,1735539039467,-500.0,0.00016677,2]
[347165684,1735539039490,-3479.6,0.00016677,2]
[347165685,1735539039512,-500.0,0.00016677,2]
[347165686,1735539039534,-2768.29,0.00016678,2]
[347165687,1735539039555,-498.0,0.00016678,2]
[347165688,1735539039577,-899.74,0.00016678,2]
[347165689,1735539039601,-725.64,0.00016678,2]
[347165690,1735539039624,-500.0,0.00016951,2]
[347165691,1735539039647,-644.47,0.00016951,2]
[347165692,1735539039671,-500.0,0.00016951,2]
[347165693,1735539039699,-500.0,0.00016951,2]
[347165694,1735539039720,-899.04,0.00016951,2]
[347165695,1735539039729,-3479.6,0.00016951,2]
[347165696,1735539039738,-500.0,0.00016951,2]
[347165697,1735539039747,-500.0,0.00016951,2]
[347165698,1735539039756,-2768.29,0.00016952,2]
[347165699,1735539039766,-151.0,0.00016952,2]
[347165700,1735539039775,-151.0,0.00016952,2]
[347165701,1735539039784,-221.397527,0.00016952,2]
[347165702,1735539039793,-221.397527,0.00016952,2]
[347165703,1735539039802,-381.524298,0.00016952,2]
[347165704,1735539039811,-381.524298,0.00016952,2]
[347165705,1735539039820,-669.184803,0.00016952,2]
[347165706,1735539039829,-778.129999,0.00016952,2]
[347165707,1735539039838,-669.184803,0.00016952,2]
[347165708,1735539039847,-778.129999,0.00016952,2]
[347165709,1735539039856,-899.74,0.00016952,2]
[347165710,1735539039865,-611.731519,0.00016952,2]
[347165711,1735539039874,-611.731519,0.00016952,2]
[347165712,1735539039883,-725.64,0.00016952,2]
[347165713,1735539039892,-500.0,0.00017225,2]
[347165714,1735539039902,-644.47,0.00017225,2]
[347165715,1735539039910,-500.0,0.00017225,2]
[347165716,1735539039920,-500.0,0.00017225,2]
[347165717,1735539039929,-3479.6,0.00017225,2]
[347165718,1735539039938,-500.0,0.00017225,2]
[347165719,1735539039948,-2768.29,0.00017226,2]
[347165720,1735539039958,-151.0,0.00017226,2]
[347165721,1735539039967,-151.0,0.00017226,2]
[347165722,1735539039976,-899.74,0.00017226,2]
[347165723,1735539039985,-438.885848,0.00017226,2]
[347165724,1735539039995,-438.885848,0.00017226,2]
[347165725,1735539040004,-1363.072733,0.00017226,2]
[347165726,1735539040014,-725.64,0.00017226,2]
[347165727,1735539040023,-1363.072733,0.00017226,2]
[347165728,1735539040033,-1149.642885,0.00017226,2]
[347165730,1735539040043,-1149.642885,0.00017226,2]
[347165732,1735539040052,-170.563264,0.00017226,2]
[347165733,1735539040061,-170.563264,0.00017226,2]
[347165734,1735539040070,-500.0,0.00017499,2]
[347165735,1735539040080,-644.47,0.00017499,2]
[347165736,1735539040089,-500.0,0.00017499,2]
[347165737,1735539040098,-500.0,0.00017499,2]
[347165738,1735539040108,-899.04,0.00017499,2]
[347165740,1735539040117,-899.04,0.00017499,2]
[347165742,1735539040127,-899.04,0.00017499,2]
[347165743,1735539040136,-899.04,0.00017499,2]
[347165744,1735539040146,-899.04,0.00017499,2]
[347165745,1735539040157,-899.04,0.00017499,2]
[347165746,1735539040166,-3479.6,0.00017499,2]
[347165747,1735539040176,-412.52,0.00017499,2]
[347165748,1735539040186,-500.0,0.00017499,2]
[347165749,1735539040196,-409.96,0.00017499,2]
[347165750,1735539040208,-151.0,0.000175,2]
[347165751,1735539040218,-204.036878,0.000175,2]
[347165753,1735539040227,-151.0,0.000175,2]
[347165755,1735539040237,-151.0,0.000175,2]
[347165757,1735539040247,-290.765184,0.000175,2]
[347165759,1735539040257,-290.765184,0.000175,2]
[347165761,1735539040266,-215.803718,0.000175,2]
[347165763,1735539040276,-215.803718,0.000175,2]
[347165764,1735539040286,-151.0,0.000175,2]
[347165765,1735539040295,-151.0,0.000175,2]
[347165766,1735539040305,-151.0,0.000175,2]
[347165767,1735539040315,-2768.29,0.000175,2]
[347165768,1735539040325,-507.61859,0.000175,2]
[347165769,1735539040335,-507.61859,0.000175,2]
[347165770,1735539040344,-927.764141,0.000175,2]
[347165771,1735539040358,-927.764141,0.000175,2]
[347165773,1735539040367,-151.0,0.000175,2]
[347165774,1735539040376,-151.0,0.000175,2]
[347165775,1735539040386,-385.9192,0.000175,2]
[347165776,1735539040397,-385.9192,0.000175,2]
[347165777,1735539040407,-676.641157,0.000175,2]
[347165778,1735539040416,-676.641157,0.000175,2]
[347165780,1735539040427,-348.057057,0.000175,2]
[347165782,1735539040437,-348.057057,0.000175,2]
[347165783,1735539040447,-899.74,0.000175,2]
[347165784,1735539040457,-725.64,0.000175,2]
[347165785,1735539040467,-899.04,0.00017618,2]
[347165786,1735539040476,-460.567,0.00017619,2]
[347165787,1735539040485,-500.0,0.00017773,2]
[347165788,1735539040495,-644.47,0.00017773,2]
[347165789,1735539040504,-500.0,0.00017773,2]
[347165796,1735539040587,-631.44407419,0.00017773,2]
[347165798,1735539040598,-3479.6,0.00017773,2]
[347165800,1735539040607,-2768.29,0.00017774,2]
[347165802,1735539040617,-899.74,0.00017774,2]
[347165804,1735539040626,-725.64,0.00017774,2]
[347165806,1735539040635,-159.8366575,0.00017835,2]
[347165808,1735539040645,-5164.75756255,0.00018,2]
[347165810,1735539040654,-151.0,0.00018,2]
[347165813,1735539040663,-151.0,0.00018,2]
[347165815,1735539040673,-221.397527,0.00018,2]
[347165817,1735539040682,-221.397527,0.00018,2]
[347165819,1735539040691,-381.524298,0.00018,2]
[347165820,1735539040700,-381.524298,0.00018,2]
[347165822,1735539040710,-669.184803,0.00018,2]
[347165825,1735539040720,-778.129999,0.00018,2]
[347165826,1735539040729,-669.184803,0.00018,2]
[347165829,1735539040739,-778.129999,0.00018,2]
[347165831,1735539040750,-611.731519,0.00018,2]
[347165833,1735539040759,-611.731519,0.00018,2]
[347165835,1735539040770,-587.0,0.00018004,2]
[347165837,1735539040780,-545.18,0.00018047,2]
[347165839,1735539040791,-644.47,0.00018047,2]
[347165841,1735539040801,-500.0,0.00018047,2]
[347165843,1735539040810,-899.04,0.00018047,2]
[347165845,1735539040820,-3479.6,0.00018047,2]
[347165847,1735539040829,-151.0,0.00018048,2]
[347165849,1735539040839,-193.648714,0.00018048,2]
[347165851,1735539040848,-379.64762,0.00018048,2]
[347165853,1735539040857,-193.648714,0.00018048,2]
[347165855,1735539040866,-379.64762,0.00018048,2]
[347165857,1735539040875,-1268.627667,0.00018048,2]
[347165859,1735539040883,-1268.627667,0.00018048,2]
[347165861,1735539040892,-3655.000013,0.00018048,2]
[347165863,1735539040902,-3655.000013,0.00018048,2]
[347165865,1735539040911,-151.0,0.00018048,2]
[347165867,1735539040920,-151.0,0.00018048,2]
[347165869,1735539040929,-1122.231708,0.00018048,2]
[347165871,1735539040939,-1122.231708,0.00018048,2]
[347165873,1735539040948,-215.660806,0.00018048,2]
[347165875,1735539040958,-215.660806,0.00018048,2]
[347165877,1735539040967,-2768.29,0.00018048,2]
[347165879,1735539040976,-507.61859,0.00018048,2]
[347165881,1735539040985,-507.61859,0.00018048,2]
[347165883,1735539040994,-927.764141,0.00018048,2]
[347165885,1735539041004,-927.764141,0.00018048,2]
[347165887,1735539041013,-154.196358,0.00018048,2]
[347165889,1735539041023,-151.0,0.00018048,2]
[347165891,1735539041032,-385.9192,0.00018048,2]
[347165893,1735539041041,-385.9192,0.00018048,2]
[347165895,1735539041051,-676.641157,0.00018048,2]
[347165897,1735539041059,-676.641157,0.00018048,2]
[347165899,1735539041069,-151.0,0.00018048,2]
[347165901,1735539041078,-151.0,0.00018048,2]
[347165903,1735539041087,-899.74,0.00018048,2]
[347165905,1735539041096,-438.885848,0.00018048,2]
[347165907,1735539041105,-438.885848,0.00018048,2]
[347165909,1735539041114,-1363.072733,0.00018048,2]
[347165911,1735539041124,-725.64,0.00018048,2]
[347165913,1735539041133,-1363.072733,0.00018048,2]
[347165915,1735539041143,-1149.642885,0.00018048,2]
[347165917,1735539041152,-1149.642885,0.00018048,2]
[347165919,1735539041162,-170.563264,0.00018048,2]
[347165921,1735539041171,-170.563264,0.00018048,2]
[347165923,1735539041181,-151.0,0.000182,2]
[347165925,1735539041191,-644.47,0.00018321,2]
[347165927,1735539041201,-500.0,0.00018321,2]
[347165929,1735539041212,-899.04,0.00018321,2]
[347165931,1735539041222,-3479.6,0.00018321,2]
[347165933,1735539041231,-151.0,0.00018322,2]
[347165935,1735539041241,-2768.29,0.00018322,2]
[347165937,1735539041250,-348.057057,0.00018322,2]
[347165939,1735539041259,-348.057057,0.00018322,2]
[347165941,1735539041268,-899.74,0.00018322,2]
[347165943,1735539041277,-725.64,0.00018322,2]
[347165945,1735539041287,-170.563264,0.00018322,2]
[347165947,1735539041296,-170.563264,0.00018322,2]
[347165949,1735539041305,-151.0,0.00018323,2]
[347165951,1735539041316,-151.0,0.00018323,2]
[347165954,1735539041326,-591.12949,0.00018323,2]
[347165956,1735539041335,-591.12949,0.00018323,2]
[347165958,1735539041345,-215.803718,0.00018323,2]
[347165959,1735539041359,-215.803718,0.00018323,2]
[347165961,1735539041368,-151.0,0.00018323,2]
[347165963,1735539041377,-151.0,0.00018323,2]
[347165965,1735539041385,-151.0,0.00018323,2]
[347165967,1735539041397,-151.0,0.00018323,2]
[347165969,1735539041406,-221.397527,0.00018323,2]
[347165971,1735539041415,-221.397527,0.00018323,2]
[347165973,1735539041425,-381.524298,0.00018323,2]
[347165974,1735539041434,-381.524298,0.00018323,2]
[347165975,1735539041443,-669.184803,0.00018323,2]
[347165976,1735539041454,-778.129999,0.00018323,2]
[347165977,1735539041463,-669.184803,0.00018323,2]
[347165978,1735539041472,-778.129999,0.00018323,2]
[347165979,1735539041481,-151.0,0.00018323,2]
[347165980,1735539041490,-151.0,0.00018323,2]
[347165981,1735539041499,-438.885848,0.00018323,2]
[347165982,1735539041508,-611.731519,0.00018323,2]
[347165983,1735539041517,-438.885848,0.00018323,2]
[347165984,1735539041526,-611.731519,0.00018323,2]
[347165985,1735539041537,-1363.072733,0.00018323,2]
[347165986,1735539041546,-1363.072733,0.00018323,2]
[347165987,1735539041556,-1149.642885,0.00018323,2]
[347165988,1735539041566,-1149.642885,0.00018323,2]
[347165989,1735539041576,-644.47,0.00018595,2]
[347165990,1735539041585,-500.0,0.00018595,2]
[347165991,1735539041594,-899.04,0.00018595,2]
[347165992,1735539041603,-3479.6,0.00018595,2]
[347165993,1735539041613,-151.0,0.00018596,2]
[347165994,1735539041622,-151.0,0.00018596,2]
[347165995,1735539041631,-151.0,0.00018596,2]
[347165996,1735539041640,-290.765184,0.00018596,2]
[347165997,1735539041649,-290.765184,0.00018596,2]
[347165998,1735539041658,-2768.29,0.00018596,2]
[347165999,1735539041668,-899.74,0.00018596,2]
[347166000,1735539041677,-725.64,0.00018596,2]
[347166001,1735539041686,-151.0,0.000186,2]
[347166002,1735539041695,-151.0,0.00018808,2]